[Event "FRA-ch Youth U18 2019"]
[Site "Hyeres"]
[Date "2019.04.16"]
[Round "4.2"]
[White "Derige Kane, Yan"]
[Black "Gao, Etienne"]
[Result "0-1"]
[ECO "A45"]
[WhiteElo "2057"]
[BlackElo "2286"]
[Annotator "NA"]
[PlyCount "88"]
[EventDate "2019.04.14"]
[EventType "swiss"]
[EventCountry "FRA"]
[SourceTitle "playchess.com"]
[Source "ChessBase"]
[SourceQuality "1"]
[TimeControl "5400+30"]

1. d4 {[%emt 0:00:00]} Nf6 {[%emt 0:00:00]} 2. Bg5 {[%emt 0:00:00]} Ne4 {[%emt 0:00:09]} 3. Bf4 {[%emt 0:00:05]} c5 {[%emt 0:00:32]} 4. f3 {[%emt 0:00:48]} Qa5+ {[%emt 0:00:30]} 5. c3 {[%emt 0:00:26]} Nf6 {[%emt 0:00:16]} 6. d5 {[%emt 0:03:07]} e6 {[%emt 0:00:27]} 7. e4 {[%emt 0:00:32]} exd5 {[%emt 0:00:13]} 8. exd5 {[%emt 0:00:18]} d6 {[%emt 0:00:15]} 9. Na3 {[%emt 0:16:37]} Be7 {[%emt 0:00:24]} 10. Bd3 {[%emt 0:08:45]} Nbd7 {[%emt 0:09:29]} 11. Nc4 {[%emt 0:09:19]} Qc7 {[%emt 0:00:19]} 12. Ne3 {[%emt 0:00:08]} Nh5 {[%emt 0:05:27]} 13. Bg3 {[%emt 0:00:30]} Nxg3 {[%emt 0:00:11]} 14. hxg3 {[%emt 0:00:13]} g6 {[%emt 0:00:06]} 15. Nh3 {[%emt 0:04:55]} Kd8 {[%emt 0:11:34]} 16. O-O {[%emt 0:13:07]} Nb6 {[%emt 0:03:42]} 17. Qe2 {[%emt 0:06:07]} Re8 {[%emt 0:03:50]} 18. Rfe1 {[%emt 0:01:20]} Bf6 {[%emt 0:09:33]} 19. Qf1 {[%emt 0:08:25]} h5 {[%emt 0:10:27]} 20. a4 {[%emt 0:04:42]} Bd7 {[%emt 0:08:27]} 21. a5 {[%emt 0:02:37]} Na4 {[%emt 0:10:29]} 22. Nc4 {[%emt 0:00:52]} Rxe1 {[%emt 0:00:46]} 23. Qxe1 {[%emt 0:02:38]} b5 {[%emt 0:02:33]} 24. axb6 {[%emt 0:00:47]} axb6 {[%emt 0:00:36]} 25. Qd2 {[%emt 0:04:17]} b5 {[%emt 0:00:07]} 26. Qf4 {[%emt 0:01:56]} Be7 {[%emt 0:00:13]} 27. Ne3 {[%emt 0:01:20]} c4 {[%emt 0:05:48]} 28. Bc2 {[%emt 0:00:31]} Qc5 {[%emt 0:00:55]} 29. Kh2 {[%emt 0:01:31]} Nb6 {[%emt 0:03:24]} 30. Rxa8+ {[%emt 0:08:22]} Nxa8 {[%emt 0:00:05]} 31. Ng5 {[%emt 0:00:05]} Bxg5 {[%emt 0:02:00]} 32. Qxg5+ {[%emt 0:00:02]} Kc7 {[%emt 0:00:10]} 33. g4 {[%emt 0:01:25]} hxg4 {[%emt 0:04:18]} 34. Nxg4 {[%emt 0:00:18]} Nb6 {[%emt 0:00:37]} 35. Ne3 {[%emt 0:00:51]} f5 {[%emt 0:02:39]} 36. Kg3 {[%emt 0:00:32]} Kc8 {[%emt 0:02:33]} 37. Kh2 {[%emt 0:00:08]} Kc7 {[%emt 0:01:09]} 38. Kg3 {[%emt 0:00:09]} b4 {[%emt 0:01:06]} 39. cxb4 {[%emt 0:00:32]} Qxb4 {[%emt 0:00:04]} 40. Nd1 {[%emt 0:01:09]} Qe1+ {[%emt 0:00:24]} 41. Kh2 {[%emt 0:00:24]} Nxd5 {[%emt 0:01:09]} 42. Qxg6 {[%emt 0:00:38]} Nb4 {[%emt 0:01:00]} 43. Nc3 {[%emt 0:00:31]} Qe5+ {[%emt 0:00:22]} 44. Qg3 {[%emt 0:00:28]} Nxc2 {[%emt 0:00:58]} 0-1

[Event "FRA-ch Youth U18 2019"]
[Site "Hyeres"]
[Date "2019.04.16"]
[Round "4.3"]
[White "Bournel, Antoine"]
[Black "Fournier, Loic"]
[Result "1/2-1/2"]
[ECO "C07"]
[WhiteElo "2221"]
[BlackElo "2024"]
[Annotator "NA"]
[PlyCount "115"]
[EventDate "2019.04.14"]
[EventType "swiss"]
[EventCountry "FRA"]
[SourceTitle "playchess.com"]
[Source "ChessBase"]
[SourceQuality "1"]
[TimeControl "5400+30"]

1. e4 {[%emt 0:00:26]} e6 {[%emt 0:00:42]} 2. d4 {[%emt 0:00:30]} d5 {[%emt 0:01:03]} 3. Nd2 {[%emt 0:00:09]} c5 {[%emt 0:01:29]} 4. exd5 {[%emt 0:01:35]} Qxd5 {[%emt 0:00:08]} 5. Ngf3 {[%emt 0:00:42]} cxd4 {[%emt 0:01:25]} 6. Bc4 {[%emt 0:00:05]} Qd6 {[%emt 0:00:25]} 7. O-O {[%emt 0:10:58]} Nf6 {[%emt 0:00:29]} 8. Nb3 {[%emt 0:00:43]} Be7 {[%emt 0:00:47]} 9. Nbxd4 {[%emt 0:04:14]} O-O {[%emt 0:00:23]} 10. Qe2 {[%emt 0:03:15]} a6 {[%emt 0:00:52]} 11. c3 {[%emt 0:04:32]} Nc6 {[%emt 0:08:09]} 12. Rd1 {[%emt 0:03:08]} Qc7 {[%emt 0:01:45]} 13. Nxc6 {[%emt 0:04:18]} Qxc6 {[%emt 0:00:11]} 14. Ne5 {[%emt 0:04:18]} Qe4 {[%emt 0:04:29]} 15. Bg5 {[%emt 0:05:01]} Qxe2 {[%emt 0:08:13]} 16. Bxe2 {[%emt 0:00:06]} h6 {[%emt 0:00:48]} 17. Bh4 {[%emt 0:05:31]} g5 {[%emt 0:02:30]} 18. Bg3 {[%emt 0:00:06]} Ne4 {[%emt 0:01:25]} 19. Nd7 {[%emt 0:11:42]} Nxg3 {[%emt 0:00:19]} 20. hxg3 {[%emt 0:00:17]} Re8 {[%emt 0:09:41]} 21. Nb6 {[%emt 0:00:34]} Rb8 {[%emt 0:00:13]} 22. a4 {[%emt 0:06:28]} Bc5 {[%emt 0:04:32]} 23. a5 {[%emt 0:00:07]} e5 {[%emt 0:03:48]} 24. Nd7 {[%emt 0:07:10]} Bxd7 {[%emt 0:00:23]} 25. Rxd7 {[%emt 0:00:05]} Re6 {[%emt 0:03:41]} 26. b4 {[%emt 0:01:59]} Ba7 {[%emt 0:08:02]} 27. Rad1 {[%emt 0:03:06]} Kf8 {[%emt 0:02:47]} 28. R1d6 {[%emt 0:03:13]} Rxd6 {[%emt 0:02:03]} 29. Rxd6 {[%emt 0:00:07]} Ke7 {[%emt 0:04:40]} 30. Rxh6 {[%emt 0:00:05]} Rc8 {[%emt 0:01:14]} 31. c4 {[%emt 0:02:38]} Bd4 {[%emt 0:00:50]} 32. c5 {[%emt 0:07:55]} Rc6 {[%emt 0:02:32]} 33. Rh8 {[%emt 0:01:21]} Bc3 {[%emt 0:01:13]} 34. Rb8 {[%emt 0:00:34]} Rc7 {[%emt 0:00:06]} 35. c6 {[%emt 0:01:05]} bxc6 {[%emt 0:04:33]} 36. Bxa6 {[%emt 0:00:08]} Rd7 {[%emt 0:03:48]} 37. Be2 {[%emt 0:02:14]} e4 {[%emt 0:03:28]} 38. a6 {[%emt 0:00:57]} Bd4 {[%emt 0:03:13]} 39. Bg4 {[%emt 0:01:00]} Rc7 {[%emt 0:03:26]} 40. Bc8 {[%emt 0:01:36]} c5 {[%emt 0:07:27]} 41. b5 {[%emt 0:02:30]} c4 {[%emt 0:00:17]} 42. Bf5 {[%emt 0:01:26]} c3 {[%emt 0:00:14]} 43. Bxe4 {[%emt 0:00:00]} c2 {[%emt 0:00:00]} 44. Bxc2 {[%emt 0:00:01]} Rxc2 {[%emt 0:00:00]} 45. a7 {[%emt 0:01:42]} Bxf2+ {[%emt 0:00:00]} 46. Kf1 {[%emt 0:00:39]} Bxa7 {[%emt 0:00:00]} 47. Rb7+ {[%emt 0:00:05]} Kf6 {[%emt 0:02:58]} 48. Rxa7 {[%emt 0:00:06]} Rb2 {[%emt 0:00:06]} 49. Rb7 {[%emt 0:00:10]} g4 {[%emt 0:00:19]} 50. b6 {[%emt 0:01:00]} Ke6 {[%emt 0:01:42]} 51. Rb8 {[%emt 0:00:36]} Kd7 {[%emt 0:01:26]} 52. Ke1 {[%emt 0:02:37]} Rxg2 {[%emt 0:00:52]} 53. Rf8 {[%emt 0:00:59]} Kc6 {[%emt 0:00:32]} 54. Rxf7 {[%emt 0:00:21]} Kxb6 {[%emt 0:00:13]} 55. Rf4 {[%emt 0:00:13]} Rxg3 {[%emt 0:00:05]} 56. Kf2 {[%emt 0:00:05]} Rf3+ {[%emt 0:00:09]} 57. Rxf3 {[%emt 0:00:05]} gxf3 {[%emt 0:00:06]} 58. Kxf3 {[%emt 0:00:05]} 1/2-1/2

[Event "FRA-ch Youth U18 2019"]
[Site "Hyeres"]
[Date "2019.04.16"]
[Round "4.4"]
[White "Verin, Jules"]
[Black "Arnaud, Aurelien"]
[Result "0-1"]
[ECO "E16"]
[WhiteElo "2015"]
[BlackElo "2174"]
[Annotator "NA"]
[PlyCount "50"]
[EventDate "2019.04.14"]
[EventType "swiss"]
[EventCountry "FRA"]
[SourceTitle "playchess.com"]
[Source "ChessBase"]
[SourceQuality "1"]
[TimeControl "5400+30"]

1. d4 {[%emt 0:00:00]} Nf6 {[%emt 0:00:00]} 2. Nf3 {[%emt 0:00:00]} e6 {[%emt 0:00:00]} 3. c4 {[%emt 0:00:00]} b6 {[%emt 0:00:00]} 4. g3 {[%emt 0:00:40]} Bb7 {[%emt 0:00:39]} 5. Bg2 {[%emt 0:00:37]} Bb4+ {[%emt 0:01:35]} 6. Bd2 {[%emt 0:02:12]} Be7 {[%emt 0:00:09]} 7. Nc3 {[%emt 0:01:39]} O-O {[%emt 0:00:51]} 8. O-O {[%emt 0:00:31]} d6 {[%emt 0:01:50]} 9. Qc2 {[%emt 0:06:05]} Nbd7 {[%emt 0:01:23]} 10. e4 {[%emt 0:06:47]} e5 {[%emt 0:02:36]} 11. d5 {[%emt 0:04:13]} Nh5 {[%emt 0:09:13]} 12. Ne1 {[%emt 0:08:23]} g6 {[%emt 0:01:40]} 13. Bh6 {[%emt 0:04:35]} Ng7 {[%emt 0:02:31]} 14. Bh3 {[%emt 0:01:41]} Bc8 {[%emt 0:01:09]} 15. f4 {[%emt 0:02:20]} exf4 {[%emt 0:01:39]} 16. gxf4 {[%emt 0:01:46]} Nf6 {[%emt 0:02:43]} 17. Rf3 {[%emt 0:05:08]} Re8 {[%emt 0:01:32]} 18. Nd3 {[%emt 0:06:42]} Ng4 {[%emt 0:01:29]} 19. Bxg7 {[%emt 0:01:11]} Kxg7 {[%emt 0:00:21]} 20. Qg2 {[%emt 0:02:03]} f5 {[%emt 0:06:22]} 21. Bxg4 {[%emt 0:03:05]} fxg4 {[%emt 0:00:01]} 22. Re3 {[%emt 0:03:36]} Bf6 {[%emt 0:00:46]} 23. Rae1 {[%emt 0:05:18]} Bd4 {[%emt 0:00:24]} 24. e5 {[%emt 0:01:13]} Bf5 {[%emt 0:00:44]} 25. e6 {[%emt 0:01:41]} Bxd3 {[%emt 1:02:53]} 0-1

[Event "FRA-ch Youth U18 2019"]
[Site "Hyeres"]
[Date "2019.04.17"]
[Round "5.1"]
[White "Travadon, Loic"]
[Black "Arnaud, Aurelien"]
[Result "1-0"]
[ECO "A25"]
[WhiteElo "2456"]
[BlackElo "2174"]
[Annotator "RC"]
[PlyCount "123"]
[EventDate "2019.04.14"]
[EventType "swiss"]
[EventCountry "FRA"]
[SourceTitle "playchess.com"]
[Source "ChessBase"]
[SourceQuality "1"]
[TimeControl "5400+30"]

1. c4 {[%emt 0:00:00]} e5 {[%emt 0:00:00]} 2. g3 {[%emt 0:00:00]} Nc6 {[%emt 0:00:00]} 3. Bg2 {[%emt 0:00:00]} f5 {[%emt 0:00:05]} 4. Nc3 {[%emt 0:00:00]} Nf6 {[%emt 0:00:15]} 5. e3 {[%emt 0:00:35]} d5 {[%emt 0:00:16]} 6. Nxd5 {[%emt 0:00:10]} Nxd5 {[%emt 0:00:09]} 7. cxd5 {[%emt 0:00:03]} Nb4 {[%emt 0:00:13]} 8. d3 {[%emt 0:00:03]} c6 {[%emt 0:00:22]} 9. Qb3 {[%emt 0:00:31]} Nxd5 {[%emt 0:03:18]} 10. Nf3 {[%emt 0:00:31]} Qe7 {[%emt 0:05:51]} 11. O-O {[%emt 0:01:19]} Be6 {[%emt 0:04:41]} 12. Qd1 {[%emt 0:00:38]} e4 {[%emt 0:04:32]} 13. Nd4 {[%emt 0:03:50]} Bd7 {[%emt 0:01:37]} 14. dxe4 {[%emt 0:00:41]} fxe4 {[%emt 0:00:07]} 15. Qb3 {[%emt 0:03:36]} Rb8 {[%emt 0:07:52]} 16. Bd2 {[%emt 0:01:06]} Qe5 {[%emt 0:05:58]} 17. Qc2 {[%emt 0:00:58]} c5 {[%emt 0:03:28]} 18. f4 {[%emt 0:05:01]} Qe7 {[%emt 0:01:53]} 19. Nb3 {[%emt 0:03:17]} Nf6 {[%emt 0:02:06]} 20. Bc3 {[%emt 0:01:39]} Bb5 {[%emt 0:01:01]} 21. Bxf6 {[%emt 0:00:18]} gxf6 {[%emt 0:00:14]} 22. Rfd1 {[%emt 0:02:03]} Bd3 {[%emt 0:01:17]} 23. Rxd3 {[%emt 0:00:01]} exd3 {[%emt 0:00:08]} 24. Qxd3 {[%emt 0:00:04]} Qd7 {[%emt 0:06:19]} 25. Qe2 {[%emt 0:00:29]} Rd8 {[%emt 0:07:15]} 26. Na5 {[%emt 0:01:27]} Qd3 {[%emt 0:00:48]} 27. Qh5+ {[%emt 0:00:12]} Qg6 {[%emt 0:00:07]} 28. Qf3 {[%emt 0:00:19]} Be7 {[%emt 0:06:13]} 29. Qxb7 {[%emt 0:01:59]} Qd3 {[%emt 0:04:58]} 30. Qf3 {[%emt 0:02:20]} O-O {[%emt 0:03:20]} 31. Nc6 {[%emt 0:00:14]} Rd7 {[%emt 0:01:07]} 32. Bh3 {[%emt 0:03:23]} Rc7 {[%emt 0:02:42]} 33. Rd1 {[%emt 0:00:17]} Qb5 {[%emt 0:01:29]} 34. Bd7 {[%emt 0:00:21]} Rxc6 {[%emt 0:01:06]} 35. Bxc6 {[%emt 0:00:32]} Qxb2 {[%emt 0:00:41]} 36. Rd7 {[%emt 0:00:41]} Qb1+ {[%emt 0:00:53]} 37. Rd1 {[%emt 0:00:32]} Qg6 {[%emt 0:00:47]} 38. f5 {[%emt 0:00:13]} Qg5 {[%emt 0:00:50]} 39. h4 {[%emt 0:00:30]} Qg7 {[%emt 0:00:30]} 40. Rd7 {[%emt 0:00:30]} Kh8 {[%emt 0:00:30]} 41. Bd5 {[%emt 0:00:30]} Rd8 {[%emt 0:00:30]} 42. Rxd8+ {[%emt 0:00:30]} Bxd8 {[%emt 0:00:30]} 43. Be6 {[%emt 0:00:30]} h6 {[%emt 0:00:30]} 44. Kf2 {[%emt 0:00:30]} Bc7 {[%emt 0:00:30]} 45. g4 {[%emt 0:04:28]} Be5 {[%emt 0:03:47]} 46. a4 {[%emt 0:01:54]} Qc7 {[%emt 0:00:52]} 47. Qa8+ {[%emt 0:01:20]} Qb8 {[%emt 0:00:12]} 48. Qc6 {[%emt 0:00:46]} Bg3+ {[%emt 0:00:45]} 49. Kg2 {[%emt 0:06:23]} Bxh4 {[%emt 0:00:29]} 50. Qf3 {[%emt 0:00:16]} Bg5 {[%emt 0:02:52]} 51. a5 {[%emt 0:00:25]} a6 {[%emt 0:02:40]} 52. Bc4 {[%emt 0:03:20]} Qd8 {[%emt 0:02:26]} 53. Kh3 {[%emt 0:55:15]} Qe8 {[%emt 0:02:55]} 54. Bxa6 {[%emt 0:00:00]} Qxe3 {[%emt 0:00:41]} 55. Qxe3 {[%emt 0:00:00]} Bxe3 {[%emt 0:00:01]} 56. Bc4 {[%emt 0:00:00]} Bf4 {[%emt 0:00:30]} 57. Kg2 {[%emt 0:00:00]} Kg7 {[%emt 0:03:48]} 58. Kf3 {[%emt 0:00:00]} Bb8 {[%emt 0:00:31]} 59. Ke4 {[%emt 0:00:00]} Kf8 {[%emt 0:00:13]} 60. Kd5 {[%emt 0:00:00]} Ke7 {[%emt 0:00:26]} 61. Kc6 {[%emt 0:00:00]} Kd8 {[%emt 0:01:34]} 62. Kb7 {[%emt 0:00:00]} 1-0

[Event "FRA-ch Youth U18 2019"]
[Site "Hyeres"]
[Date "2019.04.18"]
[Round "6.1"]
[White "Djidjeli, Sofiane"]
[Black "Travadon, Loic"]
[Result "0-1"]
[ECO "C41"]
[WhiteElo "2099"]
[BlackElo "2456"]
[Annotator "ChessBase"]
[PlyCount "118"]
[EventDate "2019.04.14"]
[EventType "swiss"]
[EventCountry "FRA"]
[SourceTitle "playchess.com"]
[Source "ChessBase"]
[SourceQuality "1"]
[TimeControl "5400+30"]

1. e4 {[%emt 0:00:00]} e5 {[%emt 0:00:00]} 2. Nf3 {[%emt 0:01:08]} d6 {[%emt 0:00:00]} 3. d4 {[%emt 0:02:08]} exd4 {[%emt 0:00:02]} 4. Nxd4 {[%emt 0:00:06]} Nf6 {[%emt 0:00:03]} 5. Nc3 {[%emt 0:01:22]} Be7 {[%emt 0:00:05]} 6. Be2 {[%emt 0:08:00]} O-O {[%emt 0:00:05]} 7. O-O {[%emt 0:00:39]} Re8 {[%emt 0:00:03]} 8. Re1 {[%emt 0:01:15]} Bf8 {[%emt 0:01:35]} 9. Bf1 {[%emt 0:00:23]} c6 {[%emt 0:03:23]} 10. Bg5 {[%emt 0:01:36]} Nbd7 {[%emt 0:02:53]} 11. Qd2 {[%emt 0:08:19]} h6 {[%emt 0:00:19]} 12. Bf4 {[%emt 0:02:15]} Ne5 {[%emt 0:00:47]} 13. Rad1 {[%emt 0:01:35]} Ng6 {[%emt 0:00:28]} 14. Nb3 {[%emt 0:12:20]} Nxf4 {[%emt 0:00:20]} 15. Qxf4 {[%emt 0:00:06]} Bd7 {[%emt 0:06:10]} 16. h3 {[%emt 0:09:48]} Qc7 {[%emt 0:01:50]} 17. Nd4 {[%emt 0:02:40]} b5 {[%emt 0:00:41]} 18. Nf5 {[%emt 0:02:25]} Bxf5 {[%emt 0:00:06]} 19. exf5 {[%emt 0:01:05]} Qb6 {[%emt 0:04:40]} 20. Ne4 {[%emt 0:04:24]} Nxe4 {[%emt 0:00:19]} 21. Rxe4 {[%emt 0:00:08]} d5 {[%emt 0:02:21]} 22. Rxe8 {[%emt 0:00:40]} Rxe8 {[%emt 0:00:02]} 23. Bd3 {[%emt 0:01:02]} Qd8 {[%emt 0:05:09]} 24. c3 {[%emt 0:04:27]} Bd6 {[%emt 0:00:35]} 25. Qd2 {[%emt 0:00:54]} Qf6 {[%emt 0:06:48]} 26. Re1 {[%emt 0:05:51]} Rd8 {[%emt 0:00:30]} 27. Qe3 {[%emt 0:00:30]} a6 {[%emt 0:00:30]} 28. Qb6 {[%emt 0:00:30]} c5 {[%emt 0:00:30]} 29. g3 {[%emt 0:00:30]} c4 {[%emt 0:00:30]} 30. Bb1 {[%emt 0:00:30]} Be5 {[%emt 0:01:04]} 31. Qe3 {[%emt 0:09:48]} Bc7 {[%emt 0:01:42]} 32. b3 {[%emt 0:04:17]} Ba5 {[%emt 0:01:16]} 33. Rc1 {[%emt 0:01:53]} Bb6 {[%emt 0:00:30]} 34. Qf3 {[%emt 0:00:30]} Ba5 {[%emt 0:01:07]} 35. Kg2 {[%emt 0:00:30]} d4 {[%emt 0:00:00]} 36. cxd4 {[%emt 0:14:26]} Bd2 37. Rd1 {[%emt 0:00:00]} c3 {[%emt 0:05:11]} 38. d5 {[%emt 0:00:00]} Qd4 {[%emt 0:00:46]} 39. Qe4 {[%emt 0:00:00]} Qxd5 {[%emt 0:00:22]} 40. Qxd5 {[%emt 0:00:00]} Rxd5 {[%emt 0:00:05]} 41. Kf3 {[%emt 0:00:00]} Kf8 {[%emt 0:00:52]} 42. a3 {[%emt 0:00:00]} Ke7 {[%emt 0:00:46]} 43. Bc2 {[%emt 0:00:00]} Kd6 {[%emt 0:00:23]} 44. Ke2 {[%emt 0:00:00]} Kc5 {[%emt 0:00:29]} 45. Kf3 {[%emt 0:00:00]} Kd4 {[%emt 0:00:30]} 46. Rf1 {[%emt 0:00:00]} Re5 {[%emt 0:00:30]} 47. Rd1 {[%emt 0:00:00]} a5 {[%emt 0:00:30]} 48. Rb1 {[%emt 0:00:00]} Re8 {[%emt 0:00:54]} 49. Rd1 {[%emt 0:00:00]} Ra8 {[%emt 0:00:33]} 50. Ra1 {[%emt 0:00:00]} Kc5 {[%emt 0:00:26]} 51. Rb1 {[%emt 0:00:00]} b4 {[%emt 0:00:30]} 52. a4 {[%emt 0:00:00]} Kd4 {[%emt 0:00:14]} 53. Rf1 {[%emt 0:00:00]} Re8 {[%emt 0:00:26]} 54. Rd1 {[%emt 0:00:00]} Re5 {[%emt 0:00:43]} 55. Rb1 {[%emt 0:00:00]} Rc5 {[%emt 0:00:15]} 56. Rd1 {[%emt 0:00:00]} Ke5 {[%emt 0:00:05]} 57. Ke2 {[%emt 0:00:00]} Kf6 {[%emt 0:00:22]} 58. Rb1 {[%emt 0:01:53]} Re5+ {[%emt 0:02:12]} 59. Kf3 {[%emt 0:04:25]} Rxf5+ {[%emt 0:00:15]} 0-1

[Event "FRA-ch Youth U18 2019"]
[Site "Hyeres"]
[Date "2019.04.18"]
[Round "6.2"]
[White "Bournel, Antoine"]
[Black "Gao, Etienne"]
[Result "0-1"]
[ECO "B51"]
[WhiteElo "2221"]
[BlackElo "2286"]
[Annotator "NA"]
[PlyCount "102"]
[EventDate "2019.04.14"]
[EventType "swiss"]
[EventCountry "FRA"]
[SourceTitle "playchess.com"]
[Source "ChessBase"]
[SourceQuality "1"]
[TimeControl "5400+30"]

1. e4 {[%emt 0:00:00]} c5 {[%emt 0:00:00]} 2. Nf3 {[%emt 0:00:06]} d6 {[%emt 0:00:00]} 3. Bb5+ {[%emt 0:00:22]} Nd7 {[%emt 0:00:11]} 4. d4 {[%emt 0:00:28]} cxd4 {[%emt 0:00:21]} 5. Qxd4 {[%emt 0:00:08]} a6 {[%emt 0:01:21]} 6. Bxd7+ {[%emt 0:00:25]} Bxd7 {[%emt 0:00:08]} 7. c4 {[%emt 0:00:31]} e5 {[%emt 0:00:58]} 8. Qd3 {[%emt 0:00:32]} Rc8 {[%emt 0:08:23]} 9. Nc3 {[%emt 0:04:53]} Qc7 {[%emt 0:03:58]} 10. b3 {[%emt 0:00:23]} b5 {[%emt 0:01:31]} 11. Nd5 {[%emt 0:00:20]} Qc6 {[%emt 0:02:41]} 12. Nd2 {[%emt 0:05:51]} Nf6 {[%emt 0:01:06]} 13. Nxf6+ {[%emt 0:09:37]} gxf6 {[%emt 0:00:04]} 14. O-O {[%emt 0:05:06]} Qb7 {[%emt 0:11:49]} 15. Ba3 {[%emt 0:06:22]} b4 {[%emt 0:03:54]} 16. Bb2 {[%emt 0:07:37]} h5 {[%emt 0:02:42]} 17. f4 {[%emt 0:20:34]} Rg8 {[%emt 0:07:43]} 18. Rf3 {[%emt 0:02:51]} Qb6+ {[%emt 0:07:12]} 19. Kh1 {[%emt 0:03:05]} Bg4 {[%emt 0:04:29]} 20. Rff1 {[%emt 0:00:05]} h4 {[%emt 0:07:45]} 21. f5 {[%emt 0:00:59]} Bh6 {[%emt 0:10:30]} 22. Rae1 {[%emt 0:01:58]} Ke7 {[%emt 0:00:45]} 23. Bc1 {[%emt 0:01:58]} Qa5 {[%emt 0:02:48]} 24. Qb1 {[%emt 0:01:55]} Bh5 {[%emt 0:02:26]} 25. Nf3 {[%emt 0:02:18]} Bxc1 {[%emt 0:00:06]} 26. Rxc1 {[%emt 0:00:25]} Rg4 {[%emt 0:05:55]} 27. h3 {[%emt 0:02:01]} Rg3 {[%emt 0:02:29]} 28. Nxh4 {[%emt 0:04:51]} Qc5 {[%emt 0:01:25]} 29. Qc2 {[%emt 0:01:38]} Rh8 {[%emt 0:02:54]} 30. Rce1 {[%emt 0:03:46]} Bg4 {[%emt 0:00:54]} 31. Nf3 {[%emt 0:02:50]} Bxf3 {[%emt 0:00:44]} 32. Rxf3 {[%emt 0:00:06]} Rxf3 {[%emt 0:05:57]} 33. gxf3 {[%emt 0:00:40]} Rxh3+ {[%emt 0:00:06]} 34. Kg2 {[%emt 0:00:05]} Rh5 {[%emt 0:00:11]} 35. Rh1 {[%emt 0:05:49]} Rg5+ {[%emt 0:01:16]} 36. Kf1 {[%emt 0:00:05]} Qd4 {[%emt 0:00:24]} 37. Qc1 {[%emt 0:03:18]} Rg3 {[%emt 0:00:25]} 38. Qc2 {[%emt 0:02:14]} Qe3 {[%emt 0:01:17]} 39. Qe2 {[%emt 0:00:46]} Rxf3+ {[%emt 0:00:05]} 40. Ke1 {[%emt 0:00:05]} Qc3+ {[%emt 0:00:12]} 41. Qd2 {[%emt 0:00:19]} Re3+ {[%emt 0:00:04]} 42. Kd1 {[%emt 0:00:09]} Rd3 {[%emt 0:00:05]} 43. Rh2 {[%emt 0:00:04]} Qa1+ {[%emt 0:00:27]} 44. Kc2 {[%emt 0:00:08]} Rxd2+ {[%emt 0:00:17]} 45. Rxd2 {[%emt 0:00:04]} Qxa2+ {[%emt 0:00:07]} 46. Kc1 {[%emt 0:00:12]} Qxb3 {[%emt 0:00:22]} 47. Rc2 {[%emt 0:00:12]} Qe3+ {[%emt 0:00:12]} 48. Kb2 {[%emt 0:00:05]} a5 {[%emt 0:00:22]} 49. Rc1 {[%emt 0:00:04]} a4 {[%emt 0:00:09]} 50. Rd1 {[%emt 0:00:08]} Qc3+ {[%emt 0:00:13]} 51. Kb1 {[%emt 0:00:05]} a3 {[%emt 0:00:07]} 0-1

[Event "FRA-ch Youth U18 2019"]
[Site "Hyeres"]
[Date "2019.04.18"]
[Round "6.3"]
[White "Lucas, Arthur"]
[Black "Fournier, Loic"]
[Result "0-1"]
[ECO "C01"]
[WhiteElo "2301"]
[BlackElo "2024"]
[Annotator "NA"]
[PlyCount "86"]
[EventDate "2019.04.14"]
[EventType "swiss"]
[EventCountry "FRA"]
[SourceTitle "playchess.com"]
[Source "ChessBase"]
[SourceQuality "1"]
[TimeControl "5400+30"]

1. e4 {[%emt 0:00:00]} e6 {[%emt 0:00:44]} 2. d4 {[%emt 0:00:00]} d5 {[%emt 0:00:56]} 3. Bd3 {[%emt 0:00:00]} c5 {[%emt 0:02:06]} 4. exd5 {[%emt 0:00:00]} Qxd5 {[%emt 0:00:12]} 5. Nc3 {[%emt 0:00:02]} Qd8 {[%emt 0:02:01]} 6. Nf3 {[%emt 0:01:49]} Nf6 {[%emt 0:01:58]} 7. Be3 {[%emt 0:16:09]} cxd4 {[%emt 0:01:50]} 8. Nxd4 {[%emt 0:02:45]} Be7 {[%emt 0:00:16]} 9. Qf3 {[%emt 0:08:33]} O-O {[%emt 0:06:55]} 10. O-O-O {[%emt 0:01:04]} Nbd7 {[%emt 0:00:24]} 11. Qg3 {[%emt 0:11:38]} Qa5 {[%emt 0:06:39]} 12. Ndb5 {[%emt 0:09:19]} a6 {[%emt 0:06:31]} 13. Nc7 {[%emt 0:13:30]} Nh5 {[%emt 0:04:02]} 14. Qh3 {[%emt 0:00:47]} Qxc7 {[%emt 0:01:32]} 15. Qxh5 {[%emt 0:00:07]} f5 {[%emt 0:15:40]} 16. Qe2 {[%emt 0:10:25]} Ne5 {[%emt 0:08:31]} 17. Bd4 {[%emt 0:04:05]} Nc6 {[%emt 0:00:49]} 18. Bc4 {[%emt 0:01:16]} Nxd4 {[%emt 0:01:50]} 19. Rxd4 {[%emt 0:00:08]} Bf6 {[%emt 0:01:40]} 20. Bxe6+ {[%emt 0:03:19]} Kh8 {[%emt 0:01:16]} 21. Rc4 {[%emt 0:01:46]} Qa5 {[%emt 0:10:12]} 22. Ra4 {[%emt 0:07:15]} Qc5 {[%emt 0:00:41]} 23. Rc4 {[%emt 0:01:10]} Qa5 {[%emt 0:00:08]} 24. Ra4 {[%emt 0:00:39]} Qc5 {[%emt 0:00:09]} 25. Rc4 {[%emt 0:06:12]} Qa5 {[%emt 0:00:09]} 26. Bxc8 {[%emt 0:00:22]} Raxc8 {[%emt 0:00:45]} 27. Rxc8 {[%emt 0:00:12]} Rxc8 {[%emt 0:00:11]} 28. Qe6 {[%emt 0:00:25]} Qc5 {[%emt 0:00:47]} 29. Re1 {[%emt 0:00:29]} h6 {[%emt 0:00:40]} 30. Qe3 {[%emt 0:00:57]} Bg5 {[%emt 0:00:24]} 31. f4 {[%emt 0:00:31]} Qxe3+ {[%emt 0:00:05]} 32. Rxe3 {[%emt 0:00:02]} Bxf4 {[%emt 0:00:11]} 33. Kd2 {[%emt 0:00:19]} b5 {[%emt 0:01:53]} 34. Nd1 {[%emt 0:00:40]} Bxe3+ {[%emt 0:00:12]} 35. Nxe3 {[%emt 0:00:04]} g6 {[%emt 0:00:24]} 36. Kd3 {[%emt 0:00:48]} Rd8+ {[%emt 0:00:19]} 37. Kc3 {[%emt 0:00:10]} h5 {[%emt 0:01:13]} 38. g3 {[%emt 0:00:24]} Kg7 {[%emt 0:00:19]} 39. b3 {[%emt 0:00:41]} Kf6 {[%emt 0:00:46]} 40. a4 {[%emt 0:00:18]} Ke5 {[%emt 0:00:13]} 41. axb5 {[%emt 0:00:15]} axb5 {[%emt 0:00:22]} 42. h4 {[%emt 0:01:33]} f4 {[%emt 0:00:20]} 43. gxf4+ {[%emt 0:00:15]} Kxf4 {[%emt 0:00:07]} 0-1